[Event "Titled Tuesday Blitz May 16 Early 2023"]
[White "Da Matta, Eduardo Cesar"]
[Black "Itgelt, Khuyagtsogt"]
[WhiteFideId "2193108"]
[BlackFideId "4902912"]
[WhiteElo "1981"]
[BlackElo "2227"]
[Result "0-1"]
[Round "02"]
[TimeControl "180+2"]
[Date "2023.05.16"]
[WhiteClock "0:00:03"]
[BlackClock "0:00:05"]

1. d4 {[%clk 0:03:00]}  Nf6 {[%clk 0:02:56]} 2. c4 {[%clk 0:03:01]}  g6 {[%clk 0:02:57]} 3. Nc3 {[%clk 0:03:01]}  d5 {[%clk 0:02:57]} 4. Bf4 {[%clk 0:03:01]}  Bg7 {[%clk 0:02:35]} 5. e3 {[%clk 0:03:01]}  O-O {[%clk 0:02:28]} 6. Rc1 {[%clk 0:03:01]}  c5 {[%clk 0:02:14]} 7. dxc5 {[%clk 0:03:02]}  Ne4 {[%clk 0:01:51]} 8. Nxe4 {[%clk 0:02:27]}  dxe4 {[%clk 0:01:52]} 9. Qxd8 {[%clk 0:02:27]}  Rxd8 {[%clk 0:01:52]} 10. b4 {[%clk 0:02:27]}  a5 {[%clk 0:01:40]} 11. b5 {[%clk 0:02:23]}  Bb2 {[%clk 0:01:30]} 12. Rc2 {[%clk 0:02:21]}  Ba3 {[%clk 0:01:30]} 13. Ne2 {[%clk 0:02:00]}  Bxc5 {[%clk 0:01:25]} 14. Ng3 {[%clk 0:01:50]}  Bb4+ {[%clk 0:01:08]} 15. Ke2 {[%clk 0:01:45]}  Bg4+ {[%clk 0:00:56]} 16. f3 {[%clk 0:01:45]}  exf3+ {[%clk 0:00:57]} 17. gxf3 {[%clk 0:01:45]}  Be6 {[%clk 0:00:58]} 18. Bxb8 {[%clk 0:01:16]}  Raxb8 {[%clk 0:00:53]} 19. Ne4 {[%clk 0:00:58]}  Rbc8 {[%clk 0:00:43]} 20. Kf2 {[%clk 0:00:58]}  h6 {[%clk 0:00:37]} 21. Be2 {[%clk 0:00:54]}  f5 {[%clk 0:00:34]} 22. Ng3 {[%clk 0:00:46]}  Bc5 {[%clk 0:00:33]} 23. Rd1 {[%clk 0:00:41]}  f4 {[%clk 0:00:30]} 24. Nf1 {[%clk 0:00:39]}  Bxe3+ {[%clk 0:00:19]} 25. Nxe3 {[%clk 0:00:38]}  fxe3+ {[%clk 0:00:20]} 26. Kxe3 {[%clk 0:00:39]}  Rxd1 {[%clk 0:00:21]} 27. Bxd1 {[%clk 0:00:38]}  Rxc4 {[%clk 0:00:20]} 28. Rxc4 {[%clk 0:00:24]}  Bxc4 {[%clk 0:00:20]} 29. b6 {[%clk 0:00:23]}  Bxa2 {[%clk 0:00:16]} 30. f4 {[%clk 0:00:20]}  Bd5 {[%clk 0:00:15]} 31. Kd4 {[%clk 0:00:20]}  e6 {[%clk 0:00:11]} 32. Ke5 {[%clk 0:00:12]}  Kf7 {[%clk 0:00:10]} 33. Ba4 {[%clk 0:00:10]}  Ke7 {[%clk 0:00:10]} 34. Bc2 {[%clk 0:00:10]}  Kf7 {[%clk 0:00:05]} 35. Kd6 {[%clk 0:00:09]}  Kf6 {[%clk 0:00:04]} 36. h4 {[%clk 0:00:09]}  Bc6 {[%clk 0:00:03]} 37. Bb3 {[%clk 0:00:06]}  a4 {[%clk 0:00:02]} 38. Bxe6 {[%clk 0:00:05]}  a3 {[%clk 0:00:03]} 39. Ba2 {[%clk 0:00:05]}  Be4 {[%clk 0:00:02]} 40. Kc5 {[%clk 0:00:02]}  Kf5 {[%clk 0:00:03]} 41. Kb4 {[%clk 0:00:01]}  Kxf4 {[%clk 0:00:03]} 42. Kxa3 {[%clk 0:00:02]}  g5 {[%clk 0:00:04]} 43. hxg5 {[%clk 0:00:02]}  Kxg5 {[%clk 0:00:04]} 44. Bb3 {[%clk 0:00:01]}  h5 {[%clk 0:00:04]} 45. Kb4 {[%clk 0:00:02]}  h4 {[%clk 0:00:04]} 46. Kc5 {[%clk 0:00:03]}  h3 {[%clk 0:00:04]} 47. Bd5 {[%clk 0:00:03]}  Bxd5 {[%clk 0:00:03]} 48. Kxd5 {[%clk 0:00:04]}  h2 {[%clk 0:00:04]} 49. Kd6 {[%clk 0:00:05]}  h1=Q {[%clk 0:00:05]} 50. Kc7 {[%clk 0:00:03]}  Qc6+ {[%clk 0:00:05]} 0-1


[Site "https://www.chess.com"]

[Event "Titled Tuesday Blitz May 16 Early 2023"]
[White "Bluebaum, Matthias"]
[Black "Shuvalov, Evgenij"]
[WhiteFideId "24651516"]
[BlackFideId "4187237"]
[WhiteElo "2639"]
[BlackElo "2080"]
[Result "1-0"]
[Round "02"]
[TimeControl "180+2"]
[Date "2023.05.16"]
[WhiteClock "0:03:00"]
[BlackClock "0:00:01"]

1. d4 {[%clk 0:03:00]}  Nf6 {[%clk 0:01:54]} 2. c4 {[%clk 0:02:59]}  g6 {[%clk 0:01:54]} 3. Nc3 {[%clk 0:03:00]}  d5 {[%clk 0:01:54]} 4. cxd5 {[%clk 0:03:01]}  Nxd5 {[%clk 0:01:55]} 5. e4 {[%clk 0:03:01]}  Nxc3 {[%clk 0:01:55]} 6. bxc3 {[%clk 0:03:02]}  Bg7 {[%clk 0:01:55]} 7. Nf3 {[%clk 0:03:02]}  c5 {[%clk 0:01:55]} 8. Bb5+ {[%clk 0:03:03]}  Nc6 {[%clk 0:01:54]} 9. O-O {[%clk 0:03:03]}  O-O {[%clk 0:01:54]} 10. Bxc6 {[%clk 0:03:04]}  bxc6 {[%clk 0:01:54]} 11. Qc2 {[%clk 0:03:04]}  cxd4 {[%clk 0:01:52]} 12. cxd4 {[%clk 0:03:05]}  Bg4 {[%clk 0:01:50]} 13. Ne5 {[%clk 0:03:06]}  Qxd4 {[%clk 0:01:45]} 14. Bb2 {[%clk 0:03:05]}  Qb6 {[%clk 0:01:45]} 15. Rab1 {[%clk 0:03:06]}  Be6 {[%clk 0:01:13]} 16. Nxg6 {[%clk 0:03:06]}  hxg6 {[%clk 0:00:08]} 17. Bxg7 {[%clk 0:03:06]}  Qa5 {[%clk 0:00:05]} 18. Bxf8 {[%clk 0:03:03]}  Rxf8 {[%clk 0:00:06]} 19. Qxc6 {[%clk 0:03:00]}  Qxa2 {[%clk 0:00:05]} 20. Ra1 {[%clk 0:03:00]}  Qe2 {[%clk 0:00:01]} 21. Rfe1 {[%clk 0:03:00]} 1-0


[Site "https://www.chess.com"]

[Event "Titled Tuesday Blitz May 16 Early 2023"]
[White "Visakh N R"]
[Black "Liu, Casper"]
[WhiteFideId "25012223"]
[BlackFideId "1454153"]
[WhiteElo "2466"]
[BlackElo "2221"]
[Result "1-0"]
[Round "02"]
[TimeControl "180+2"]
[Date "2023.05.16"]
[WhiteClock "0:01:36"]
[BlackClock "0:00:42"]

1. e4 {[%clk 0:03:00]}  c5 {[%clk 0:02:57]} 2. Nf3 {[%clk 0:03:00]}  d6 {[%clk 0:02:58]} 3. d4 {[%clk 0:02:59]}  Nf6 {[%clk 0:02:58]} 4. dxc5 {[%clk 0:02:57]}  Nxe4 {[%clk 0:02:59]} 5. cxd6 {[%clk 0:02:57]}  Nxd6 {[%clk 0:02:59]} 6. Nc3 {[%clk 0:02:56]}  Nc6 {[%clk 0:02:59]} 7. h3 {[%clk 0:02:53]}  g6 {[%clk 0:02:59]} 8. Bf4 {[%clk 0:02:52]}  Bg7 {[%clk 0:02:58]} 9. Qd2 {[%clk 0:02:52]}  O-O {[%clk 0:02:58]} 10. O-O-O {[%clk 0:02:52]}  Qa5 {[%clk 0:02:56]} 11. Kb1 {[%clk 0:02:48]}  Be6 {[%clk 0:02:55]} 12. Nd5 {[%clk 0:02:47]}  Qa4 {[%clk 0:02:17]} 13. b3 {[%clk 0:02:28]}  Qa3 {[%clk 0:02:10]} 14. Qc1 {[%clk 0:02:28]}  Qxc1+ {[%clk 0:02:05]} 15. Kxc1 {[%clk 0:02:25]}  Bxd5 {[%clk 0:01:57]} 16. Rxd5 {[%clk 0:02:24]}  Nb4 {[%clk 0:01:58]} 17. Ra5 {[%clk 0:02:16]}  Bc3 {[%clk 0:01:40]} 18. Bd2 {[%clk 0:02:09]}  Rfc8 {[%clk 0:01:26]} 19. Ne1 {[%clk 0:01:54]}  Ne4 {[%clk 0:01:07]} 20. Bxc3 {[%clk 0:01:53]}  Rxc3 {[%clk 0:01:07]} 21. Rb5 {[%clk 0:01:40]}  Nxc2 {[%clk 0:01:00]} 22. Nxc2 {[%clk 0:01:39]}  Rac8 {[%clk 0:01:01]} 23. Bc4 {[%clk 0:01:37]}  a6 {[%clk 0:00:57]} 24. Rxb7 {[%clk 0:01:36]}  Nd6 {[%clk 0:00:44]} 25. Rxe7 {[%clk 0:01:36]}  Nxc4 {[%clk 0:00:44]} 26. bxc4 {[%clk 0:01:36]}  R8xc4 {[%clk 0:00:42]} 27. Re2 {[%clk 0:01:36]} 1-0


[Site "https://www.chess.com"]

[Event "Titled Tuesday Blitz May 16 Early 2023"]
[White "Titichoca Daza, Daniel"]
[Black "Aydincelebi, Kagan"]
[WhiteFideId "3309550"]
[BlackFideId "6361102"]
[WhiteElo "2101"]
[BlackElo "2180"]
[Result "0-1"]
[Round "02"]
[TimeControl "180+2"]
[Date "2023.05.16"]
[WhiteClock "0:00:00"]
[BlackClock "0:00:26"]

1. c4 {[%clk 0:03:00]}  e5 {[%clk 0:02:59]} 2. g3 {[%clk 0:02:58]}  Nf6 {[%clk 0:03:00]} 3. Bg2 {[%clk 0:02:59]}  d5 {[%clk 0:03:00]} 4. cxd5 {[%clk 0:02:58]}  Nxd5 {[%clk 0:03:01]} 5. Nc3 {[%clk 0:02:58]}  Nb6 {[%clk 0:03:01]} 6. Nf3 {[%clk 0:02:59]}  Nc6 {[%clk 0:03:02]} 7. O-O {[%clk 0:02:59]}  Be7 {[%clk 0:03:03]} 8. a3 {[%clk 0:02:56]}  O-O {[%clk 0:03:03]} 9. b4 {[%clk 0:02:57]}  Re8 {[%clk 0:03:04]} 10. Bb2 {[%clk 0:02:56]}  Bf8 {[%clk 0:03:03]} 11. Rc1 {[%clk 0:02:55]}  Bg4 {[%clk 0:03:04]} 12. h3 {[%clk 0:02:52]}  Bh5 {[%clk 0:03:04]} 13. d3 {[%clk 0:02:51]}  a5 {[%clk 0:03:04]} 14. b5 {[%clk 0:02:50]}  Nd4 {[%clk 0:03:04]} 15. Nd2 {[%clk 0:02:42]}  Rb8 {[%clk 0:03:01]} 16. Re1 {[%clk 0:02:43]}  Qd7 {[%clk 0:02:58]} 17. g4 {[%clk 0:01:58]}  Bg6 {[%clk 0:02:57]} 18. e3 {[%clk 0:01:58]}  Nxb5 {[%clk 0:02:54]} 19. Nde4 {[%clk 0:01:25]}  Nxc3 {[%clk 0:02:46]} 20. Bxc3 {[%clk 0:00:42]}  Bxa3 {[%clk 0:02:44]} 21. Ra1 {[%clk 0:00:42]}  Bb4 {[%clk 0:02:43]} 22. Bxb4 {[%clk 0:00:39]}  axb4 {[%clk 0:02:44]} 23. Qb3 {[%clk 0:00:40]}  Bxe4 {[%clk 0:02:12]} 24. Bxe4 {[%clk 0:00:41]}  c5 {[%clk 0:02:13]} 25. Ra5 {[%clk 0:00:36]}  Rec8 {[%clk 0:02:05]} 26. Bf5 {[%clk 0:00:33]}  Qc6 {[%clk 0:01:46]} 27. Bxc8 {[%clk 0:00:31]}  Rxc8 {[%clk 0:01:47]} 28. Rc1 {[%clk 0:00:28]}  Nd7 {[%clk 0:01:45]} 29. d4 {[%clk 0:00:23]}  b6 {[%clk 0:01:38]} 30. Ra7 {[%clk 0:00:23]}  Rc7 {[%clk 0:01:12]} 31. Rxc7 {[%clk 0:00:18]}  Qxc7 {[%clk 0:01:13]} 32. dxc5 {[%clk 0:00:19]}  bxc5 {[%clk 0:01:13]} 33. Qxb4 {[%clk 0:00:17]}  Qd6 {[%clk 0:01:13]} 34. Qb7 {[%clk 0:00:14]}  Nf8 {[%clk 0:01:11]} 35. Qe4 {[%clk 0:00:13]}  g6 {[%clk 0:01:09]} 36. Ra1 {[%clk 0:00:13]}  Ne6 {[%clk 0:01:09]} 37. Ra8+ {[%clk 0:00:10]}  Kg7 {[%clk 0:01:09]} 38. h4 {[%clk 0:00:10]}  h6 {[%clk 0:01:02]} 39. Rc8 {[%clk 0:00:08]}  Kf6 {[%clk 0:00:45]} 40. Qf3+ {[%clk 0:00:07]}  Kg7 {[%clk 0:00:45]} 41. Qa8 {[%clk 0:00:08]}  Qd1+ {[%clk 0:00:44]} 42. Kh2 {[%clk 0:00:07]}  Qxg4 {[%clk 0:00:44]} 43. Rg8+ {[%clk 0:00:07]}  Kf6 {[%clk 0:00:44]} 44. Qg2 {[%clk 0:00:02]}  Qxh4+ {[%clk 0:00:43]} 45. Kg1 {[%clk 0:00:03]}  e4 {[%clk 0:00:34]} 46. Rc8 {[%clk 0:00:02]}  Ke5 {[%clk 0:00:30]} 47. Kf1 {[%clk 0:00:01]}  Qh5 {[%clk 0:00:28]} 48. Qg3+ {[%clk 0:00:01]}  Kf6 {[%clk 0:00:28]} 49. Qd6 {[%clk 0:00:02]}  Qh1+ {[%clk 0:00:27]} 50. Ke2 {[%clk 0:00:02]}  Qf3+ {[%clk 0:00:28]} 51. Ke1 {[%clk 0:00:02]}  Qf5 {[%clk 0:00:27]} 52. Re8 {[%clk 0:00:01]}  Kg5 {[%clk 0:00:27]} 53. Rxe6 {[%clk 0:00:02]}  fxe6 {[%clk 0:00:26]} 54. Qe7+ {[%clk 0:00:00]}  Kg4 {[%clk 0:00:26]} 0-1


[Site "https://www.chess.com"]

[Event "Titled Tuesday Blitz May 16 Early 2023"]
[White "Nastase, Robert-Paul"]
[Black "Papasimakopoulos, Alexandros"]
[WhiteFideId "1221175"]
[BlackFideId "4244125"]
[WhiteElo "2175"]
[BlackElo "2359"]
[Result "0-1"]
[Round "02"]
[TimeControl "180+2"]
[Date "2023.05.16"]
[WhiteClock "0:00:00"]
[BlackClock "0:00:07"]

1. e4 {[%clk 0:02:55]}  e6 {[%clk 0:03:00]} 2. d4 {[%clk 0:02:54]}  d5 {[%clk 0:02:59]} 3. Nd2 {[%clk 0:02:54]}  Nf6 {[%clk 0:02:57]} 4. e5 {[%clk 0:02:53]}  Nfd7 {[%clk 0:02:56]} 5. Bd3 {[%clk 0:02:53]}  c5 {[%clk 0:02:57]} 6. c3 {[%clk 0:02:54]}  b5 {[%clk 0:02:57]} 7. Bxb5 {[%clk 0:02:45]}  Qb6 {[%clk 0:02:54]} 8. Qa4 {[%clk 0:02:17]}  cxd4 {[%clk 0:02:53]} 9. cxd4 {[%clk 0:02:16]}  a6 {[%clk 0:02:40]} 10. Bd3 {[%clk 0:01:56]}  a5 {[%clk 0:02:38]} 11. Ne2 {[%clk 0:01:51]}  Ba6 {[%clk 0:02:38]} 12. Bxa6 {[%clk 0:01:50]}  Qxa6 {[%clk 0:02:39]} 13. Qd1 {[%clk 0:01:40]}  Nc6 {[%clk 0:02:35]} 14. O-O {[%clk 0:01:41]}  Be7 {[%clk 0:02:34]} 15. f4 {[%clk 0:01:31]}  g6 {[%clk 0:02:33]} 16. Nf3 {[%clk 0:01:24]}  a4 {[%clk 0:02:30]} 17. Be3 {[%clk 0:01:19]}  Rb8 {[%clk 0:02:25]} 18. b3 {[%clk 0:01:16]}  O-O {[%clk 0:02:17]} 19. bxa4 {[%clk 0:01:15]}  Nb6 {[%clk 0:02:16]} 20. Nc3 {[%clk 0:01:09]}  Bb4 {[%clk 0:02:09]} 21. Rc1 {[%clk 0:00:59]}  Nc4 {[%clk 0:02:01]} 22. Bf2 {[%clk 0:00:56]}  Ba3 {[%clk 0:01:54]} 23. Rb1 {[%clk 0:00:52]}  Qa5 {[%clk 0:01:47]} 24. Nb5 {[%clk 0:00:43]}  Ra8 {[%clk 0:01:37]} 25. Be1 {[%clk 0:00:36]}  Qxa4 {[%clk 0:01:36]} 26. Qxa4 {[%clk 0:00:35]}  Rxa4 {[%clk 0:01:37]} 27. Bc3 {[%clk 0:00:18]}  Rfa8 {[%clk 0:01:31]} 28. g4 {[%clk 0:00:13]}  Bb4 {[%clk 0:01:12]} 29. f5 {[%clk 0:00:10]}  Bxc3 {[%clk 0:01:09]} 30. Nxc3 {[%clk 0:00:10]}  Ra3 {[%clk 0:01:09]} 31. Rb3 {[%clk 0:00:11]}  Ne3 {[%clk 0:01:04]} 32. Re1 {[%clk 0:00:07]}  Nxg4 {[%clk 0:00:59]} 33. fxe6 {[%clk 0:00:07]}  fxe6 {[%clk 0:00:58]} 34. Ng5 {[%clk 0:00:07]}  Rxb3 {[%clk 0:00:56]} 35. axb3 {[%clk 0:00:08]}  Nxd4 {[%clk 0:00:56]} 36. Rd1 {[%clk 0:00:08]}  Nxb3 {[%clk 0:00:41]} 37. Nxe6 {[%clk 0:00:08]}  Ne3 {[%clk 0:00:39]} 38. Rd3 {[%clk 0:00:07]}  Ra1+ {[%clk 0:00:26]} 39. Kf2 {[%clk 0:00:07]}  Ng4+ {[%clk 0:00:27]} 40. Kg3 {[%clk 0:00:08]}  Nxe5 {[%clk 0:00:20]} 41. Rxd5 {[%clk 0:00:08]}  Nc4 {[%clk 0:00:13]} 42. Ne4 {[%clk 0:00:08]}  Ra7 {[%clk 0:00:07]} 43. Rd8+ {[%clk 0:00:07]}  Kf7 {[%clk 0:00:07]} 44. N4g5+ {[%clk 0:00:07]}  Ke7 {[%clk 0:00:07]} 45. Rh8 {[%clk 0:00:06]}  Kf6 {[%clk 0:00:08]} 46. Rf8+ {[%clk 0:00:04]}  Ke5 {[%clk 0:00:07]} 47. Nf4 {[%clk 0:00:03]}  Nd6 {[%clk 0:00:07]} 48. Rd8 {[%clk 0:00:01]}  Nd4 {[%clk 0:00:07]} 49. Kg4 {[%clk 0:00:02]}  h5+ {[%clk 0:00:07]} 50. Kg3 {[%clk 0:00:01]}  N6f5+ {[%clk 0:00:06]} 51. Kh3 {[%clk 0:00:02]}  Ra3+ {[%clk 0:00:06]} 52. Kg2 {[%clk 0:00:00]}  Kxf4 {[%clk 0:00:07]} 0-1


[Site "https://www.chess.com"]

[Event "Titled Tuesday Blitz May 16 Early 2023"]
[White "Rangel, Daniel"]
[Black "Postny, Evgeny"]
[WhiteFideId "2124475"]
[BlackFideId "2804344"]
[WhiteElo "2256"]
[BlackElo "2504"]
[Result "0-1"]
[Round "02"]
[TimeControl "180+2"]
[Date "2023.05.16"]
[WhiteClock "0:00:00"]
[BlackClock "0:00:28"]

1. c4 {[%clk 0:02:56]}  c5 {[%clk 0:02:59]} 2. g3 {[%clk 0:02:51]}  g6 {[%clk 0:02:59]} 3. Bg2 {[%clk 0:02:52]}  Bg7 {[%clk 0:03:00]} 4. Nc3 {[%clk 0:02:52]}  Nc6 {[%clk 0:03:00]} 5. e3 {[%clk 0:02:52]}  Nh6 {[%clk 0:03:00]} 6. Nge2 {[%clk 0:02:51]}  Nf5 {[%clk 0:03:00]} 7. h4 {[%clk 0:02:51]}  O-O {[%clk 0:02:58]} 8. h5 {[%clk 0:02:50]}  d6 {[%clk 0:02:56]} 9. Nf4 {[%clk 0:02:49]}  g5 {[%clk 0:02:52]} 10. Nfe2 {[%clk 0:01:57]}  h6 {[%clk 0:02:47]} 11. f4 {[%clk 0:01:53]}  e6 {[%clk 0:02:30]} 12. d3 {[%clk 0:01:36]}  gxf4 {[%clk 0:02:28]} 13. gxf4 {[%clk 0:01:33]}  Nh4 {[%clk 0:02:28]} 14. Be4 {[%clk 0:01:27]}  f5 {[%clk 0:02:19]} 15. Bxc6 {[%clk 0:01:26]}  bxc6 {[%clk 0:02:19]} 16. Kd2 {[%clk 0:01:18]}  d5 {[%clk 0:02:08]} 17. Kc2 {[%clk 0:01:16]}  a5 {[%clk 0:02:04]} 18. b3 {[%clk 0:01:05]}  a4 {[%clk 0:01:59]} 19. Bb2 {[%clk 0:01:02]}  a3 {[%clk 0:01:55]} 20. Bc1 {[%clk 0:01:02]}  d4 {[%clk 0:01:52]} 21. exd4 {[%clk 0:00:56]}  cxd4 {[%clk 0:01:53]} 22. Na4 {[%clk 0:00:54]}  Rxa4 {[%clk 0:01:32]} 23. bxa4 {[%clk 0:00:53]}  c5 {[%clk 0:01:32]} 24. Bd2 {[%clk 0:00:46]}  Bb7 {[%clk 0:01:28]} 25. Rb1 {[%clk 0:00:37]}  Bc6 {[%clk 0:01:19]} 26. Kc1 {[%clk 0:00:33]}  Ng2 {[%clk 0:01:13]} 27. Rh3 {[%clk 0:00:24]}  Qa8 {[%clk 0:01:08]} 28. a5 {[%clk 0:00:22]}  Ne3 {[%clk 0:00:59]} 29. Qg1 {[%clk 0:00:22]}  Ng4 {[%clk 0:00:55]} 30. Rg3 {[%clk 0:00:19]}  Rb8 {[%clk 0:00:49]} 31. Rxb8+ {[%clk 0:00:14]}  Qxb8 {[%clk 0:00:50]} 32. Kd1 {[%clk 0:00:14]}  Qb2 {[%clk 0:00:34]} 33. Nc1 {[%clk 0:00:00]}  Be8 {[%clk 0:00:28]} 0-1


[Site "https://www.chess.com"]

[Event "Titled Tuesday Blitz May 16 Early 2023"]
[White "Koellner, Ruben Gideon"]
[Black "Yonal, Timur"]
[WhiteFideId "12993093"]
[BlackFideId "44115725"]
[WhiteElo "2314"]
[BlackElo "1966"]
[Result "1-0"]
[Round "02"]
[TimeControl "180+2"]
[Date "2023.05.16"]
[WhiteClock "0:01:23"]
[BlackClock "0:00:07"]

1. d4 {[%clk 0:02:54]}  d5 {[%clk 0:02:58]} 2. Nf3 {[%clk 0:02:54]}  Nf6 {[%clk 0:02:57]} 3. e3 {[%clk 0:02:53]}  e6 {[%clk 0:02:52]} 4. Nbd2 {[%clk 0:02:54]}  c5 {[%clk 0:02:47]} 5. c3 {[%clk 0:02:54]}  Nc6 {[%clk 0:02:47]} 6. Bd3 {[%clk 0:02:53]}  Bd6 {[%clk 0:02:47]} 7. O-O {[%clk 0:02:53]}  O-O {[%clk 0:02:47]} 8. dxc5 {[%clk 0:02:54]}  Bxc5 {[%clk 0:02:48]} 9. b4 {[%clk 0:02:54]}  Bd6 {[%clk 0:02:48]} 10. Bb2 {[%clk 0:02:54]}  a6 {[%clk 0:02:45]} 11. a3 {[%clk 0:02:55]}  b5 {[%clk 0:02:12]} 12. a4 {[%clk 0:02:54]}  Rb8 {[%clk 0:02:11]} 13. axb5 {[%clk 0:02:53]}  axb5 {[%clk 0:02:12]} 14. Qe2 {[%clk 0:02:54]}  Qb6 {[%clk 0:02:12]} 15. Nd4 {[%clk 0:02:53]}  e5 {[%clk 0:01:47]} 16. Nxb5 {[%clk 0:02:46]}  e4 {[%clk 0:01:47]} 17. Nxd6 {[%clk 0:02:43]}  exd3 {[%clk 0:01:47]} 18. Qxd3 {[%clk 0:02:41]}  Ne5 {[%clk 0:01:47]} 19. Nxc8 {[%clk 0:02:36]}  Nxd3 {[%clk 0:01:22]} 20. Nxb6 {[%clk 0:02:36]}  Rxb6 {[%clk 0:01:23]} 21. Ra2 {[%clk 0:02:31]}  Rc8 {[%clk 0:01:22]} 22. Ba1 {[%clk 0:02:31]}  h6 {[%clk 0:01:19]} 23. h3 {[%clk 0:02:30]}  Rbb8 {[%clk 0:01:03]} 24. Rd1 {[%clk 0:02:30]}  Ne4 {[%clk 0:01:00]} 25. Nb1 {[%clk 0:02:24]}  Ra8 {[%clk 0:00:42]} 26. Rxa8 {[%clk 0:02:13]}  Rxa8 {[%clk 0:00:43]} 27. Rxd3 {[%clk 0:02:13]}  Rxa1 {[%clk 0:00:43]} 28. Rd1 {[%clk 0:02:11]}  Nd6 {[%clk 0:00:24]} 29. Kf1 {[%clk 0:02:08]}  Nc4 {[%clk 0:00:23]} 30. Ke2 {[%clk 0:02:08]}  Ra2+ {[%clk 0:00:21]} 31. Kf3 {[%clk 0:02:07]}  Ra1 {[%clk 0:00:20]} 32. b5 {[%clk 0:01:48]}  Rxb1 {[%clk 0:00:19]} 33. Rxb1 {[%clk 0:01:47]}  Nd2+ {[%clk 0:00:20]} 34. Kf4 {[%clk 0:01:48]}  Nxb1 {[%clk 0:00:21]} 35. b6 {[%clk 0:01:49]}  g5+ {[%clk 0:00:14]} 36. Kg3 {[%clk 0:01:23]}  Nxc3 {[%clk 0:00:12]} 37. b7 {[%clk 0:01:23]}  Ne4+ {[%clk 0:00:12]} 38. Kh2 {[%clk 0:01:23]}  Nc5 {[%clk 0:00:07]} 39. b8=Q+ {[%clk 0:01:23]} 1-0


[Site "https://www.chess.com"]

[Event "Titled Tuesday Blitz May 16 Early 2023"]
[White "Mamedov, Edgar"]
[Black "Kohler, Aran"]
[WhiteFideId "13739980"]
[BlackFideId "1002856"]
[WhiteElo "2317"]
[BlackElo "2402"]
[Result "1-0"]
[Round "02"]
[TimeControl "180+2"]
[Date "2023.05.16"]
[WhiteClock "0:02:26"]
[BlackClock "0:00:31"]

1. Nf3 {[%clk 0:03:00]}  Nf6 {[%clk 0:02:58]} 2. b3 {[%clk 0:03:00]}  d6 {[%clk 0:02:57]} 3. Bb2 {[%clk 0:03:00]}  e5 {[%clk 0:02:56]} 4. g3 {[%clk 0:03:00]}  Nc6 {[%clk 0:02:55]} 5. Bg2 {[%clk 0:03:00]}  Be7 {[%clk 0:02:56]} 6. O-O {[%clk 0:03:00]}  O-O {[%clk 0:02:56]} 7. d4 {[%clk 0:03:00]}  e4 {[%clk 0:02:44]} 8. Nfd2 {[%clk 0:03:00]}  d5 {[%clk 0:02:44]} 9. c4 {[%clk 0:03:00]}  e3 {[%clk 0:02:40]} 10. fxe3 {[%clk 0:03:00]}  Ng4 {[%clk 0:02:12]} 11. Rf3 {[%clk 0:02:59]}  Bg5 {[%clk 0:01:57]} 12. Nf1 {[%clk 0:02:56]}  Re8 {[%clk 0:01:55]} 13. cxd5 {[%clk 0:02:52]}  Nxe3 {[%clk 0:01:48]} 14. Nxe3 {[%clk 0:02:49]}  Bxe3+ {[%clk 0:01:48]} 15. Rxe3 {[%clk 0:02:48]}  Rxe3 {[%clk 0:01:45]} 16. dxc6 {[%clk 0:02:48]}  bxc6 {[%clk 0:01:40]} 17. Nd2 {[%clk 0:02:41]}  Rb8 {[%clk 0:01:33]} 18. Nc4 {[%clk 0:02:40]}  Re8 {[%clk 0:01:28]} 19. e4 {[%clk 0:02:38]}  Rb5 {[%clk 0:01:24]} 20. d5 {[%clk 0:02:38]}  cxd5 {[%clk 0:01:21]} 21. exd5 {[%clk 0:02:39]}  Qg5 {[%clk 0:01:12]} 22. d6 {[%clk 0:02:33]}  Bd7 {[%clk 0:00:50]} 23. dxc7 {[%clk 0:02:26]}  Qc5+ {[%clk 0:00:47]} 24. Qd4 {[%clk 0:02:26]}  Qxd4+ {[%clk 0:00:43]} 25. Bxd4 {[%clk 0:02:27]}  Rd5 {[%clk 0:00:31]} 26. Bxd5 {[%clk 0:02:26]} 1-0


[Site "https://www.chess.com"]

[Event "Titled Tuesday Blitz May 16 Early 2023"]
[White "Andreev, Konstantin"]
[Black "Rian, Kapriaga"]
[WhiteFideId "24239305"]
[BlackFideId "7103263"]
[WhiteElo "2106"]
[BlackElo "2328"]
[Result "1-0"]
[Round "02"]
[TimeControl "180+2"]
[Date "2023.05.16"]
[WhiteClock "0:01:17"]
[BlackClock "0:00:00"]

1. e4 {[%clk 0:03:00]}  c6 {[%clk 0:02:58]} 2. d4 {[%clk 0:03:00]}  d5 {[%clk 0:02:58]} 3. e5 {[%clk 0:03:00]}  Bf5 {[%clk 0:02:57]} 4. Nf3 {[%clk 0:02:59]}  e6 {[%clk 0:02:56]} 5. Be2 {[%clk 0:03:00]}  c5 {[%clk 0:02:53]} 6. O-O {[%clk 0:02:58]}  Nc6 {[%clk 0:02:52]} 7. c3 {[%clk 0:02:58]}  Qb6 {[%clk 0:02:44]} 8. a3 {[%clk 0:02:58]}  Nge7 {[%clk 0:02:33]} 9. b4 {[%clk 0:02:55]}  cxd4 {[%clk 0:02:32]} 10. cxd4 {[%clk 0:02:55]}  Bg4 {[%clk 0:02:32]} 11. Bb2 {[%clk 0:02:54]}  Nf5 {[%clk 0:02:30]} 12. Nbd2 {[%clk 0:02:40]}  Be7 {[%clk 0:02:08]} 13. h3 {[%clk 0:02:38]}  Bxf3 {[%clk 0:02:06]} 14. Nxf3 {[%clk 0:02:39]}  O-O {[%clk 0:02:02]} 15. g4 {[%clk 0:02:37]}  Nh4 {[%clk 0:01:59]} 16. Nxh4 {[%clk 0:02:37]}  Bxh4 {[%clk 0:01:59]} 17. f4 {[%clk 0:02:38]}  f6 {[%clk 0:01:49]} 18. Kg2 {[%clk 0:02:34]}  fxe5 {[%clk 0:01:44]} 19. dxe5 {[%clk 0:02:30]}  g5 {[%clk 0:01:16]} 20. f5 {[%clk 0:02:27]}  Rad8 {[%clk 0:00:56]} 21. b5 {[%clk 0:02:04]}  Ne7 {[%clk 0:00:55]} 22. Bd4 {[%clk 0:02:02]}  Qa5 {[%clk 0:00:48]} 23. Bc5 {[%clk 0:01:56]}  Qc7 {[%clk 0:00:33]} 24. Bd6 {[%clk 0:01:53]}  Rxd6 {[%clk 0:00:32]} 25. exd6 {[%clk 0:01:54]}  Qxd6 {[%clk 0:00:32]} 26. Qd3 {[%clk 0:01:51]}  e5 {[%clk 0:00:25]} 27. Rad1 {[%clk 0:01:44]}  Kg7 {[%clk 0:00:12]} 28. Bf3 {[%clk 0:01:40]}  Rd8 {[%clk 0:00:09]} 29. f6+ {[%clk 0:01:40]}  Qxf6 {[%clk 0:00:07]} 30. Be4 {[%clk 0:01:21]}  Qd6 {[%clk 0:00:00]} 31. Bxh7 {[%clk 0:01:17]} 1-0


[Site "https://www.chess.com"]